Cogmind - Beta 14 @@@ ROGUE MODE // 2024.08.23 @ 13:35:14 Player: Daffa0360 Result: Destroyed by UO-JYP(R) with Subdweller Machine Gun Performance ------------- Evolutions (0) 0 Regions Visited (3) 600 Robots Destroyed (15) 75 Value Destroyed (371) 371 Prototype IDs (0) 0 Alien Tech Used (0) 0 Bonus (0) 0 TOTAL SCORE: 1046 Bonus ------- None Cogmind --------- Core Integrity 0/250 Matter 263/300 Energy 265/265 System Corruption 0% Temperature Cool (0) Movement Treading (360) Ox2 Location -10/Subcaves Parts ------- > --- POWER (1) -------- Improved Ion Engine > --- PROPULSION (2) --- Spiked Treads > --- UTILITY (2) ------ High-capacity Storage Unit > --- WEAPON (2) ------- Makeshift Spear > --- INVENTORY (20) --- Makeshift Power Source Hover Unit Small Storage Unit Improved Terrain Scanner Seismic Detector Targeting Computer Small Laser Rocket Launcher Subdweller Shrapnel Launcher Mining Laser Enhanced Flamer Ripper Proton Bomb Trap Proton Bomb Trap Proton Bomb Trap Proton Bomb Trap Peak State ------------ > --- POWER ------------ Subdweller Power Source > --- PROPULSION ------- (None) > --- UTILITY ---------- High-capacity Storage Unit Seismic Detector > --- WEAPON ----------- Small Laser Makeshift Shrapnel Gun > --- INVENTORY -------- Improved Ion Engine Subdweller Power Source Makeshift Power Source Hover Unit Small Storage Unit Improved Terrain Scanner Seismic Detector Targeting Computer EM Pulse Gun Small Laser Rocket Launcher Subdweller Shrapnel Launcher Mining Laser Enhanced Flamer Ripper Proton Bomb Trap Proton Bomb Trap Proton Bomb Trap Proton Bomb Trap [Rating: 12] Favorites ----------- Power Subdweller Power Source Engine Subdweller Power Source Propulsion Wheel Treads Spiked Treads Leg Aluminum Leg Wheel Wheel Utility High-capacity Storage Unit Device Seismic Detector Storage High-capacity Storage Unit Weapon Small Laser Energy Gun Small Laser Ballistic Gun Makeshift Shrapnel Gun Launcher Subdweller Shrapnel Launcher Special Weapon Mining Laser Piercing Weapon Makeshift Spear Build | -11 -10 -10 -10 ------- Run | Yrd Mat Min Sub Slots Evolved . | . . . . Power . | . . . . Propulsion . | . . . . Utility . | . . . . Weapon . | . . . . Parts Attached 27 | 2 3 3 19 Power 4 | . . . 4 Engine 4 | . . . 4 Core . | . . . . Reactor . | . . . . Propulsion 5 | . 2 1 2 Treads 1 | . . . 1 Leg . | . . . . Wheel 4 | . 2 1 1 Hover . | . . . . Flight . | . . . . Utility 2 | 1 1 . . Device 1 | 1 . . . Storage 1 | . 1 . . Processor . | . . . . Hackware . | . . . . Protection . | . . . . Artifact . | . . . . Weapon 16 | 1 . 2 13 Energy Gun 7 | 1 . . 6 Energy Cannon . | . . . . Ballistic Gun 2 | . . . 2 Ballistic Cannon . | . . . . Launcher 3 | . . 1 2 Special Weapon 3 | . . 1 2 Impact Weapon . | . . . . Slashing Weapon . | . . . . Piercing Weapon 1 | . . . 1 Special Melee Weapon . | . . . . Unidentified Prototypes . | . . . . Parts Lost 10 | . . 2 8 Power 2 | . . . 2 Propulsion 3 | . . 2 1 Utility 1 | . . . 1 Weapon 4 | . . . 4 Highest Loss Streak 3 | . . 2 3 To Critical Strikes . | . . . . Average Slot Usage (%) 74 | . 100 84 72 Engine 13 | . 14 14 13 Wheel 4 | . 8 13 2 Device 11 | . 14 14 11 Storage 14 | . 14 14 14 Energy Gun 16 | . 28 14 16 Ballistic Gun 6 | . . . 7 Launcher 4 | . . 12 3 Peak Build Rating 12 | 8 8 8 12 Average Rating 9 | 6 7 7 10 On Entrance 7 | 6 8 7 7 Naked Turns . | . . . . Heaviest Build 55 | 14 49 52 55 Greatest Support 30 | 20 20 20 30 Greatest Overweight (x) 18 | . 2 17 18 Average Overweight (x) 6 | . . 4 8 Largest Inventory Capacity 20 | 8 20 20 20 Average Capacity 19 | 8 11 20 20 Most Carried 19 | 8 8 13 19 Average Carried 15 | 7 7 8 16 Final Capacity 20 | 8 20 20 20 Final Carried 16 | 8 6 13 16 Class Distribution -------------------- 100% | Mutant Dominant Class ---------------- Mutant | -10/Materials Mutant | -10/Mines Mutant | -10/Subcaves Resources | -11 -10 -10 -10 ----------- Run | Yrd Mat Min Sub Matter Collected 632 | 220 . 97 315 Remotely . | . . . . Salvage Created 507 | 196 . 46 265 Parts 34 | 16 . 4 14 Haulers Intercepted . | . . . . Recyclers Shooed . | . . . . Parts Field Recycled . | . . . . Retrieved Matter . | . . . . Parts Self-Destructed 12 | . . . 12 Prevented . | . . . . Kills | -11 -10 -10 -10 ------- Run | Yrd Mat Min Sub Combat Hostiles Destroyed 24 | . . 15 9 Melee 1 | . . . 1 Guns 6 | . . . 6 AOE 17 | . . 15 2 Classes Destroyed 7 | 2 . 1 4 Tunneler 5 | 4 . 1 . Recycler 1 | 1 . . . Swarmer 1 | . . . 1 Grunt 3 | . . . 3 Sentry 1 | . . . 1 Subdweller 4 | . . . 4 Assembled 15 | . . 15 . Best Kill Streak 16 | 3 . 16 2 Combat Bots Only 15 | . . 15 2 Max Kills in Single Turn 3 | 1 . 3 1 Gunslinging . | . . . . Exploded 3 | . . 3 1 Melee 1 | . . . 1 Uniques/NPCs Destroyed . | . . . . Combat | -11 -10 -10 -10 -------- Run | Yrd Mat Min Sub Hostile Shots Fired 104 | . 10 20 74 Missed 33 | . 3 5 25 Damage Taken 981 | . 55 224 702 Core 272 | . 6 33 233 Absorbed by Shields . | . . . . Core Remaining (%) 100 | 100 . . . Volleys Fired 55 | 10 1 16 28 Largest 2 | 2 2 1 2 Hottest 100 | 90 90 100 100 Shots Fired 84 | 20 2 16 46 Gun 61 | 20 2 2 37 Cannon . | . . . . Launcher 16 | . . 9 7 Special 7 | . . 5 2 Kinetic 11 | . . . 11 Thermal 53 | 15 2 7 29 Explosive 14 | . . 9 5 Electromagnetic 6 | 5 . . 1 Robot Hit Streak 22 | 4 1 2 22 Robot Miss Streak 3 | 3 1 1 2 Penetration Max . | . . . . Secondary Targets . | . . . . Shots Hit Robots 48 | 10 1 3 34 Core Hits 54 | 6 . 31 17 Critical Kills . | . . . . Critical Parts Destroyed . | . . . . Critical Strikes 3 | . . . 3 Burn 3 | . . . 3 Melee Attacks 9 | . . . 9 Impact . | . . . . Slashing . | . . . . Piercing 9 | . . . 9 Sneak Attacks . | . . . . Combat Hostiles . | . . . . Follow-up Attacks . | . . . . Damage Inflicted 2070 | 114 10 1074 872 Guns 545 | 114 10 12 409 Cannons . | . . . . Explosions 1409 | . . 1062 347 Melee 116 | . . . 116 Ramming . | . . . . Kinetic 208 | . . . 208 Thermal 300 | 89 10 12 189 Explosive 1409 | . . 1062 347 Electromagnetic 37 | 25 . . 12 Impact . | . . . . Slashing . | . . . . Piercing 116 | . . . 116 Highest Corruption . | . . . . Average Corruption . | . . . . Corruption Purged . | . . . . Corruption Blocked . | . . . . Overload Shots . | . . . . Overflow Damage 55 | . . 55 . Projectiles . | . . . . Explosions 55 | . . 55 . Melee . | . . . . Knockbacks . | . . . . Impact . | . . . . Kinetic . | . . . . Secondary . | . . . . Self-Inflicted Damage . | . . . . Shots . | . . . . Rammed . | . . . . Targets Rammed . | . . . . Kicked . | . . . . Crushed . | . . . . Highest Temperature 72 | 72 30 40 5 Average Temperature 25 | 29 17 22 5 Received Heat Transfer 210 | . . . 210 Siege Activations . | . . . . Robots Corrupted . | . . . . Combat Hostiles . | . . . . Parts Fried . | . . . . Impact Corruptions . | . . . . Robots Melted . | . . . . Combat Hostiles . | . . . . Parts Melted 3 | 1 . . 2 Heat Transferred 1004 | 224 25 37 718 Parts Sabotaged . | . . . . Parts Stolen . | . . . . Parts Stripped . | . . . . Power Chain Reactions . | . . . . Alert | -11 -10 -10 -10 ------- Run | Yrd Mat Min Sub Peak Influence 63 | 25 31 63 . Initial 16 | . 16 12 . Average 25 | 11 17 29 . Maximum Alert Level . | . . . . Low Security (%) 100 | 100 100 100 . Level 1 . | . . . . Level 2 . | . . . . Level 3 . | . . . . Level 4 . | . . . . Level 5 . | . . . . High Security . | . . . . Max Security . | . . . . Squads Dispatched . | . . . . Investigation . | . . . . Extermination . | . . . . Reinforcement . | . . . . Assault . | . . . . Garrison . | . . . . Intercept . | . . . . Searches Triggered . | . . . . Construction Impeded . | . . . . Haulers Reinforced . | . . . . Active Scanning Responses . | . . . . Cargo Convoy Interrupts . | . . . . Stealth | -11 -10 -10 -10 --------- Run | Yrd Mat Min Sub Distress Signals 1 | . 1 . . Communications Jammed . | . . . . Distress Signals . | . . . . Times Spotted 35 | . 6 14 15 Peak Tracking Total 18 | . 7 18 6 Tactical Retreats 5 | . . 3 2 Traps | -11 -10 -10 -10 ------- Run | Yrd Mat Min Sub Traps Triggered . | . . . . Indirectly . | . . . . Trap Hack Attempts . | . . . . Triggered . | . . . . Disarmed . | . . . . Reprogrammed . | . . . . Reused . | . . . . Traps Extracted . | . . . . Installed . | . . . . Triggered . | . . . . Most Traps Carried 4 | . . 4 4 Machines | -11 -10 -10 -10 ---------- Run | Yrd Mat Min Sub Machines Disabled . | . . . . Max in Single Turn . | . . . . Machines Repaired . | . . . . Machines Dismantled . | . . . . Machines Sabotaged . | . . . . Overloaded Fab Kills . | . . . . Hacking | -11 -10 -10 -10 --------- Run | Yrd Mat Min Sub Machines Accessed 1 | . 1 . . Terminals 1 | . 1 . . Fabricators . | . . . . Repair Stations . | . . . . Recycling Units . | . . . . Scanalyzers . | . . . . Garrison Access . | . . . . Total Hacks 2 | . 2 . . Successful 1 | . 1 . . Failed 1 | . 1 . . Catastrophic . | . . . . Database Lockouts . | . . . . Manual . | . . . . Terminals 2 | . 2 . . Fabricators . | . . . . Repair Stations . | . . . . Recycling Units . | . . . . Scanalyzers . | . . . . Garrison Access . | . . . . Terminal Hacks 1 | . 1 . . Locate Traps 1 | . 1 . . Fabricator Hacks . | . . . . Repair Station Hacks . | . . . . Recycling Unit Hacks . | . . . . Scanalyzer . | . . . . Garrison Access Hacks . | . . . . Unauthorized Hacks . | . . . . Terminals . | . . . . Fabricators . | . . . . Repair Stations . | . . . . Recycling Units . | . . . . Scanalyzers . | . . . . Garrison Access . | . . . . Data Cores Recovered . | . . . . Used . | . . . . Hacking Detections 1 | . 1 . . Full Trace Events . | . . . . Feedback Events . | . . . . Feedback Blocked . | . . . . Robot Schematics Acquired . | . . . . Robots Built . | . . . . Authchips . | . . . . Time . | . . . . Total Robot Build Rating . | . . . . Part Schematics Acquired . | . . . . Parts Built . | . . . . Authchips . | . . . . Time . | . . . . Total Part Build Rating . | . . . . Parts Repaired . | . . . . Time . | . . . . Parts Recycled . | . . . . Recycled Matter . | . . . . Retrieved Matter . | . . . . Retrieved Components . | . . . . Parts Scanalyzed . | . . . . Part Schematics Acquired . | . . . . Parts Damaged . | . . . . Bothacking | -11 -10 -10 -10 ------------ Run | Yrd Mat Min Sub Used RIF Installer . | . . . . Robots Hacked . | . . . . Non-combat . | . . . . Combat . | . . . . Robot Hacks Applied . | . . . . Relay Couplers Released . | . . . . Fabnet Peak Effective % . | . . . . Robots Rewired . | . . . . Allies Hacked . | . . . . Hacks Repelled . | . . . . Allies | -11 -10 -10 -10 -------- Run | Yrd Mat Min Sub Total Allies . | . . . . Largest Group . | . . . . Highest-Rated Group . | . . . . Highest-Rated Ally . | . . . . Total Orders . | . . . . Ally Attacks . | . . . . Total Damage . | . . . . Kills . | . . . . Allies Corrupted . | . . . . Allies Melted . | . . . . Intel | -11 -10 -10 -10 ------- Run | Yrd Mat Min Sub Robot Analysis Total . | . . . . Derelict Logs Recovered 1 | . . 1 . Drone Launches . | . . . . Drone Recoveries . | . . . . Exploration | -11 -10 -10 -10 ------------- Run | Yrd Mat Min Sub Turns Passed 3980 | 96 97 461 3326 Spaces Moved 1045 | 31 74 208 732 Core 278 | . . 4 274 Treads 60 | . . . 60 Legs 85 | 31 54 . . Wheels 622 | . 20 204 398 Hover . | . . . . Flight . | . . . . Fastest Speed 107 | 120 110 110 107 Average Speed 345 | 120 117 163 429 Slowest Speed 950 | 120 120 900 950 Overloaded Moves . | . . . . Propulsion Burnouts . | . . . . Robots Hopped . | . . . . Cave-ins Triggered . | . . . . Exploration Rate (%) 25 | 4 19 36 42 Regions Visited 3 Branch Regions 2 Pre-discovered Areas 1 | . . 1 . Known Exits Taken . | . . . . Unknown Exits Taken 3 | 1 1 1 . Scrap Searched 7 | . . 1 6 Spaces Dug . | . . . . Terrain Destroyed 137 | . . 74 63 Melee . | . . . . Projectile . | . . . . AOE 137 | . . 74 63 Terrain Rammed . | . . . . Walls Destroyed . | . . . . Machines Disabled . | . . . . Actions | -11 -10 -10 -10 --------- Run | Yrd Mat Min Sub Total 1304 | 69 83 302 850 Wait 135 | 24 . 68 43 Move 1042 | 30 73 207 732 Hop . | . . . . Pick Up 27 | 3 2 8 14 Fast Attach . | . . . . Attach 13 | 1 2 1 9 Detach . | . . . . Swap 14 | 1 1 2 10 Drop 9 | . 4 . 5 Fire 55 | 10 1 16 28 Melee 9 | . . . 9 Ram . | . . . . Kick . | . . . . Crush . | . . . . Escape Stasis . | . . . . Rewire . | . . . . Trap . | . . . . Miscellaneous . | . . . . Route ------- -11/Scrapyard -10/Materials -10/Mines -10/Subcaves (discovered 1 exit: [*Mat]) History --------- Turn | Location | Event 1 | -11/Scrapyard | Discovered new exit (range 1) 97 | -11/Scrapyard | Entered Materials 137 | -10/Materials | Discovered new exit (range 16) 194 | -10/Materials | Entered Mines 201 | -10/Mines | Received a Rocket Launcher from a helpful Derelict 218 | -10/Mines | Assembled infested the area 223 | -10/Mines | Assisted by a Guerilla fighting off Assembled 261 | -10/Mines | Destroyed 15 combat bots 304 | -10/Mines | Build established: Mutant 507 | -10/Mines | Found a hidden stash of uninstalled traps 652 | -10/Mines | Discovered new exit (range 2) 655 | -10/Mines | Entered Subcaves 901 | -10/Subcaves | Discovered new exit (range 16) 941 | -10/Subcaves | A swath of the cavern ceiling suddenly collapsed 962 | -10/Subcaves | Shifting Twisted Machinery released Mak. Shrapnel Gun 962 | -10/Subcaves | Shifting Twisted Machinery released Spk. Treads 1103 | -10/Subcaves | Core integrity fell below 50% 1120 | -10/Subcaves | A swath of the cavern ceiling suddenly collapsed 1278 | -10/Subcaves | Disturbed a concealed Subdweller 1313 | -10/Subcaves | Lost 3 parts (1p1n1w) 3426 | -10/Subcaves | Lost 3 parts (1u2w) 3960 | -10/Subcaves | Core integrity fell below 20% 3981 | -10/Subcaves | Destroyed by UO-JYP(R) with Subdweller Machine Gun Last Messages --------------- repair. 03399_ S-10 Pest destroyed. 03407_ Flight Unit fries itself beyond repair. 03409_ Subatomizers dissect the Flight Unit. 03411_ Lgt. Ion Engine fries itself beyond repair. 03412_ Flight Unit fries itself beyond repair. 03509_ Subatomizers dissect the Sub. Optics. 03559_ Subatomizers dissect the Sub. Optics, destroying it. 03589_ Acquired 42 matter. 03614_ Acquired Broken Sub. Monowheel. 03615_ Dropped Broken Sub. Monowheel. 03743_ Acquired Spk. Treads. 03792_ Acquired Mak. Spear. 03903_ 0Z-4RH(R) destroyed. 03905_ Acquired 11 matter. 03923_ Acquired 10 matter. 03956_ EM Pulse Gun destroyed. Map ----- +----------------------------------------------------+ | ##### ## ##????## ### | | ### ## ## ## #?????# =##?# | | ### #????# #?##" | | #?# #???# """""""### | | # ## ###?## ## #??########## " | | ### #########????###########??????????## "" # | | # ## #???????????????????????????????##"""" # | | # ### #???????????????????????????????#"" ## | | #"##?## ??????????????????????????????# ## | | ##"???## #????????????????????????????# """" | | "##?????# #????????????????????????????## " " | | ## ?????? ##?????????????????????????????# "] " | | ?????? ##??????????????????????????????##" "# | | #?????? #????????????????????????????????##"""## | | ???????? ?????????????????????????????????## ## | | ????????#??????????????????????????????????#### | | ???????????????????????????????????????????# # | | ??????????????????????????????????????????## | | ????????????????????????????????????????### | | ?????????????????????????????##?????????# | | ??????????????????????????###"??????????# " | | ??????????????????????????#""##?????????#"" | | ?????????" ????????????????#"""?####?????## | | ????????#" ?????########;##"##"##????# # # | | ????????# ## R#;#;;;;"#"#""####### | | ????????" "#R@;##"## ###""#"# ## | | ??????????????## "# ####;;#"""""#" #"# | | ???????????????# ??#####??##"##""#"""###### # | | ???????????????????????????"""####""##????### | | ??????????????????????????##?##??##"#??????# | | ??????????????????????????????????###??????###" | | ?????????????????????????????????????????????##### | | ?????????????????????????????????????????????????? | | ?????????????????????????????????????????????????? | | ?????????????????????????????????????????????????? | | ?????????????????????????????????????????????????? | | ?????????????????????????????????????????????????? | | ?????????????????????????????????????????????????? | | ?????????????????????????????????????????????????? | | ?????????????????????????????????????????????????? | | ?????????????????????????????????????????????????? | | ?????????????????????????????????????????????????? | | ?????????????????????????????????????????????????? | | ?????????????????????????????????????????????????? | | ?????????????????????????????????????????????????? | | ?????????????????????????????????????????????????? | | | | | | | | | +----------------------------------------------------+ Best States ------------- Heat Dissipation 25 Energy Generation 15 Energy Capacity 265 Matter Stores 300 Matter Capacity 300 Sight Range 16 Terrain Scan Density 10 Evasion (%) 55 Recoil Reduction 1 Item Schematics ----------------- None Robot Schematics ------------------ None Fabricated ------------ Nothing Alien Tech Used ----------------- None Achievements -------------- Exterminator Challenges ------------ None Game ------ Seed ZhirovWardroneDevice Manual? 0 Play Time 00:13:41 Cumulative 58.8 hours Start 2024.08.23 @ 05:40:26 End 2024.08.23 @ 13:35:14 Sessions 3 Manual Loads 0 Difficulty Rogue Special Mode None Game No. 98 Rogue 94 Adventurer 4 Explorer 0 Win Type - Total 0 Types 0/0/0/0/0/0/0/0/0 Lore% 27 Gallery% 41 Achievement% 32 Wizard Run 0 Options --------- Layout 2 ASCII 0 Keyboard 0 Movement Mouse Keybinds 0 Fullscreen 2 Font 24/Smallcaps Map View 50x44 Zoom Use 5% Tactical HUD 1 Map Filters NONE Filters NONE Steam 1 RUN: e4c2fbf6-d2c2-4c27-823b-90b1a7be8fdd